Cogmind - Beta 13 X2 @@@ ROGUE MODE // 2024.01.21 @ 07:48:12 Player: Boris Result: Destroyed by CN-X2B(R) with Subdweller Machine Gun Performance ------------- Evolutions (0) 0 Regions Visited (2) 400 Robots Destroyed (15) 75 Value Destroyed (310) 310 Prototype IDs (0) 0 Alien Tech Used (0) 0 Bonus (0) 0 TOTAL SCORE: 785 Bonus ------- None Cogmind --------- Core Integrity 0/250 Matter 235/300 Energy 93/100 System Corruption 0% Temperature Cool (0) Movement Treading (160) Location -10/Subcaves Parts ------- > --- POWER (1) -------- (None) > --- PROPULSION (2) --- Light Treads Light Treads > --- UTILITY (2) ------ Large Storage Unit > --- WEAPON (2) ------- Autogun Autogun > --- INVENTORY (15) --- Light Ion Engine Structural Scanner Seismic Detector Hacking Suite Hacking Suite Autogun Autogun Autogun Autogun Datajack Mining Laser Heavy Hammer Botcube Peak State ------------ > --- POWER ------------ Ion Engine > --- PROPULSION ------- Light Treads Light Treads > --- UTILITY ---------- Large Storage Unit Seismic Detector > --- WEAPON ----------- Autogun Autogun > --- INVENTORY -------- Light Ion Engine Heat Sink Propulsion Shielding Light Armor Plating Hacking Suite Hacking Suite Autogun Autogun Autogun Autogun Autogun Autogun Datajack Mining Laser Botcube [Rating: 12] Favorites ----------- Power Ion Engine Engine Ion Engine Propulsion Light Treads Treads Light Treads Utility Large Storage Unit Device Seismic Detector Storage Large Storage Unit Protection Propulsion Shielding Weapon Assault Rifle Ballistic Gun Assault Rifle Special Weapon Mining Laser Build | -11 -10 -10 ------- Run | Yrd Mat Sub Slots Evolved . | . . . Power . | . . . Propulsion . | . . . Utility . | . . . Weapon . | . . . Parts Attached 22 | 6 10 6 Power 1 | 1 . . Engine 1 | 1 . . Core . | . . . Reactor . | . . . Propulsion 3 | 2 . 1 Treads 3 | 2 . 1 Leg . | . . . Wheel . | . . . Hover . | . . . Flight . | . . . Utility 9 | 1 5 3 Device 3 | . 2 1 Storage 2 | 1 1 . Processor . | . . . Hackware . | . . . Protection 4 | . 2 2 Artifact . | . . . Weapon 9 | 2 5 2 Energy Gun . | . . . Energy Cannon . | . . . Ballistic Gun 7 | 2 3 2 Ballistic Cannon . | . . . Launcher . | . . . Special Weapon 2 | . 2 . Impact Weapon . | . . . Slashing Weapon . | . . . Piercing Weapon . | . . . Special Melee Weapon . | . . . Unidentified Prototypes . | . . . Parts Lost 4 | . . 4 Power 1 | . . 1 Propulsion 1 | . . 1 Utility 1 | . . 1 Weapon 1 | . . 1 Highest Loss Streak 4 | . . 4 To Critical Strikes . | . . . Average Slot Usage (%) 99 | . 99 97 Engine 13 | . 14 13 Treads 27 | . 28 27 Device 6 | . 5 9 Storage 14 | . 14 14 Protection 6 | . 7 3 Ballistic Gun 27 | . 26 28 Naked Turns . | . . . Heaviest Build 35 | 14 32 35 Greatest Support 40 | 40 40 40 Greatest Overweight (x) 1 | 1 . . Average Overweight (x) . | . . . Largest Inventory Capacity 15 | 8 15 15 Average Capacity 13 | 7 14 15 Most Carried 15 | 4 15 15 Average Carried 9 | 2 9 14 Final Capacity 15 | 8 15 15 Final Carried 15 | 4 15 13 Class Distribution -------------------- 100% | Mutant Dominant Class ---------------- Mutant | -10/Materials Mutant | -10/Subcaves Resources | -11 -10 -10 ----------- Run | Yrd Mat Sub Matter Collected 669 | 296 294 79 Remotely . | . . . Salvage Created 556 | 117 360 79 Parts 31 | 6 21 4 Haulers Intercepted 1 | . 1 . Recyclers Shooed . | . . . Parts Field Recycled . | . . . Retrieved Matter . | . . . Parts Self-Destructed . | . . . Prevented . | . . . Kills | -11 -10 -10 ------- Run | Yrd Mat Sub Combat Hostiles Destroyed 6 | . 4 2 Guns 6 | . 4 2 Classes Destroyed 8 | 2 5 1 Builder 1 | . 1 . Tunneler 2 | 2 . . Hauler 1 | . 1 . Recycler 2 | 1 1 . Operator 2 | . 2 . Watcher 1 | . 1 . Grunt 4 | . 4 . Subdweller 2 | . . 2 Best Kill Streak 2 | 2 2 2 Combat Bots Only 2 | . 2 2 Max Kills in Single Turn 1 | 1 1 1 Gunslinging . | . . . Exploded . | . . . Melee . | . . . Uniques/NPCs Destroyed . | . . . Combat | -11 -10 -10 -------- Run | Yrd Mat Sub Hostile Shots Fired 64 | . 17 47 Missed 15 | . 5 10 Damage Taken 899 | . 139 760 Core 262 | . 52 210 Absorbed by Shields . | . . . Redirected to Shielding 12 | . 12 . Core Remaining (%) 100 | 100 . . Volleys Fired 58 | 6 37 15 Largest 2 | 2 2 2 Hottest 100 | 40 100 53 Shots Fired 107 | 12 66 29 Gun 99 | 12 58 29 Cannon . | . . . Launcher . | . . . Special 8 | . 8 . Kinetic 99 | 12 58 29 Thermal 8 | . 8 . Explosive . | . . . Electromagnetic . | . . . Robot Hit Streak 22 | 4 11 22 Robot Miss Streak 2 | 2 2 1 Penetration Max . | . . . Secondary Targets . | . . . Shots Hit Robots 76 | 8 43 25 Core Hits 24 | 4 16 4 Critical Kills . | . . . Critical Parts Destroyed 1 | . 1 . Critical Strikes 1 | . 1 . Destroy 1 | . 1 . Melee Attacks . | . . . Impact . | . . . Slashing . | . . . Piercing . | . . . Sneak Attacks . | . . . Combat Hostiles . | . . . Follow-up Attacks . | . . . Damage Inflicted 1137 | 102 595 440 Guns 1122 | 102 580 440 Cannons . | . . . Explosions . | . . . Melee . | . . . Ramming 15 | . 15 . Kinetic 1122 | 102 580 440 Thermal . | . . . Explosive . | . . . Electromagnetic . | . . . Impact . | . . . Slashing . | . . . Piercing . | . . . Highest Corruption . | . . . Average Corruption . | . . . Corruption Purged . | . . . Corruption Blocked . | . . . Overload Shots . | . . . Overflow Damage . | . . . Projectiles . | . . . Explosions . | . . . Melee . | . . . Knockbacks . | . . . Impact . | . . . Kinetic . | . . . Secondary . | . . . Self-Inflicted Damage . | . . . Shots . | . . . Rammed 1 | . 1 . Targets Rammed 1 | . 1 . Kicked . | . . . Crushed . | . . . Highest Temperature 100 | . 100 . Average Temperature 26 | . 26 . Received Heat Transfer 174 | . 78 96 Siege Activations . | . . . Robots Corrupted . | . . . Combat Hostiles . | . . . Parts Fried . | . . . Impact Corruptions . | . . . Robots Melted . | . . . Combat Hostiles . | . . . Parts Melted . | . . . Heat Transferred . | . . . Parts Sabotaged . | . . . Parts Stolen . | . . . Parts Stripped . | . . . Power Chain Reactions . | . . . Missiles Intercepted . | . . . Alert | -11 -10 -10 ------- Run | Yrd Mat Sub Peak Influence 89 | 15 89 . Initial 9 | . 9 . Average 37 | 5 41 . Maximum Alert Level . | . . . Low Security (%) 100 | 100 100 . Level 1 . | . . . Level 2 . | . . . Level 3 . | . . . Level 4 . | . . . Level 5 . | . . . High Security . | . . . Max Security . | . . . Squads Dispatched 3 | . 3 . Investigation 1 | . 1 . Extermination . | . . . Reinforcement 2 | . 2 . Assault . | . . . Garrison . | . . . Intercept . | . . . Searches Triggered . | . . . Construction Impeded . | . . . Haulers Reinforced . | . . . Active Scanning Responses . | . . . Cargo Convoy Interrupts . | . . . Stealth | -11 -10 -10 --------- Run | Yrd Mat Sub Distress Signals . | . . . Communications Jammed . | . . . Distress Signals . | . . . Times Spotted 13 | . 8 5 Peak Tracking Total 3 | . 2 3 Tactical Retreats . | . . . Traps | -11 -10 -10 ------- Run | Yrd Mat Sub Traps Triggered 1 | . 1 . Indirectly . | . . . Trap Hack Attempts . | . . . Triggered . | . . . Disarmed . | . . . Reprogrammed . | . . . Reused . | . . . Traps Extracted . | . . . Installed . | . . . Triggered . | . . . Machines | -11 -10 -10 ---------- Run | Yrd Mat Sub Machines Disabled . | . . . Max in Single Turn . | . . . Machines Repaired . | . . . Machines Dismantled . | . . . Machines Sabotaged . | . . . Overloaded Fab Kills . | . . . Hacking | -11 -10 -10 --------- Run | Yrd Mat Sub Machines Accessed 4 | . 4 . Terminals 4 | . 4 . Fabricators . | . . . Repair Stations . | . . . Recycling Units . | . . . Scanalyzers . | . . . Garrison Access . | . . . Total Hacks 13 | . 13 . Successful 6 | . 6 . Failed 7 | . 7 . Catastrophic 1 | . 1 . Database Lockouts . | . . . Manual 12 | . 12 . Terminals 13 | . 13 . Fabricators . | . . . Repair Stations . | . . . Recycling Units . | . . . Scanalyzers . | . . . Garrison Access . | . . . Terminal Hacks 3 | . 3 . Robot Analysis 1 | . 1 . Hauler Manifests 1 | . 1 . Zone Layout 1 | . 1 . Fabricator Hacks . | . . . Repair Station Hacks . | . . . Recycling Unit Hacks . | . . . Scanalyzer . | . . . Garrison Access Hacks . | . . . Unauthorized Hacks 3 | . 3 . Terminals 3 | . 3 . Track 1 | . 1 . Assimilate 1 | . 1 . Operators 1 | . 1 . Fabricators . | . . . Repair Stations . | . . . Recycling Units . | . . . Scanalyzers . | . . . Garrison Access . | . . . Data Cores Recovered . | . . . Used . | . . . Hacking Detections 4 | . 4 . Full Trace Events . | . . . Feedback Events . | . . . Feedback Blocked . | . . . Robot Schematics Acquired . | . . . Robots Built . | . . . Authchips . | . . . Time . | . . . Total Robot Build Rating . | . . . Part Schematics Acquired . | . . . Parts Built . | . . . Authchips . | . . . Time . | . . . Total Part Build Rating . | . . . Parts Repaired . | . . . Time . | . . . Parts Recycled . | . . . Recycled Matter . | . . . Retrieved Matter . | . . . Retrieved Components . | . . . Parts Scanalyzed . | . . . Part Schematics Acquired . | . . . Parts Damaged . | . . . Bothacking | -11 -10 -10 ------------ Run | Yrd Mat Sub Used RIF Installer . | . . . Robots Hacked . | . . . Non-combat . | . . . Combat . | . . . Robot Hacks Applied . | . . . Relay Couplers Released . | . . . Fabnet Peak Effective % . | . . . Robots Rewired . | . . . Allies Hacked . | . . . Hacks Repelled . | . . . Allies | -11 -10 -10 -------- Run | Yrd Mat Sub Total Allies . | . . . Largest Group . | . . . Highest-Rated Group . | . . . Highest-Rated Ally . | . . . Total Orders . | . . . Ally Attacks . | . . . Total Damage . | . . . Kills . | . . . Allies Corrupted . | . . . Allies Melted . | . . . Intel | -11 -10 -10 ------- Run | Yrd Mat Sub Robot Analysis Total 1 | . 1 . Derelict Logs Recovered . | . . . Drone Launches . | . . . Drone Recoveries . | . . . Exploration | -11 -10 -10 ------------- Run | Yrd Mat Sub Turns Passed 1519 | 143 1109 267 Spaces Moved 718 | 77 510 131 Core 12 | 12 . . Treads 706 | 65 510 131 Legs . | . . . Wheels . | . . . Hover . | . . . Flight . | . . . Fastest Speed 50 | 50 160 160 Average Speed 158 | 145 160 160 Slowest Speed 160 | 160 160 160 Overloaded Moves . | . . . Propulsion Burnouts . | . . . Robots Hopped . | . . . Cave-ins Triggered . | . . . Exploration Rate (%) 32 | 5 82 11 Regions Visited 2 Branch Regions 1 Pre-discovered Areas . | . . . Known Exits Taken . | . . . Unknown Exits Taken 2 | 1 1 . Scrap Searched . | . . . Spaces Dug 2 | . 2 . Terrain Destroyed 3 | . 3 . Melee . | . . . Projectile 3 | . 3 . AOE . | . . . Terrain Rammed . | . . . Walls Destroyed . | . . . Machines Disabled . | . . . Actions | -11 -10 -10 --------- Run | Yrd Mat Sub Total 982 | 93 726 163 Wait 157 | 2 145 10 Move 716 | 76 509 131 Hop . | . . . Pick Up 19 | 3 16 . Fast Attach 9 | 6 2 1 Attach 2 | . . 2 Detach 1 | . 1 . Swap 11 | . 8 3 Drop 8 | . 7 1 Fire 58 | 6 37 15 Melee . | . . . Ram . | . . . Kick . | . . . Crush 1 | . 1 . Escape Stasis . | . . . Rewire . | . . . Trap . | . . . Miscellaneous . | . . . Route ------- -11/Scrapyard -10/Materials (discovered 5 exits: [*Mat x2] / [*Min x2] / [*Sub]) -10/Subcaves History --------- Turn | Location | Event 5 | -11/Scrapyard | Discovered new exit (range 16) 144 | -11/Scrapyard | Entered Materials 311 | -10/Materials | Build established: Mutant 496 | -10/Materials | Discovered new exit (range 10) 786 | -10/Materials | Discovered new exit (range 10) 935 | -10/Materials | Discovered new exit (range 14) 1097 | -10/Materials | Discovered new exit (range 9) 1160 | -10/Materials | Discovered new exit (range 8) 1253 | -10/Materials | Entered Subcaves 1480 | -10/Subcaves | A Subdweller sparked back to life 1480 | -10/Subcaves | A Subdweller sparked back to life 1480 | -10/Subcaves | A Subdweller sparked back to life 1504 | -10/Subcaves | Core integrity fell below 50% 1514 | -10/Subcaves | Core integrity fell below 20% 1520 | -10/Subcaves | Destroyed by CN-X2B(R) with Subdweller Machine Gun Last Messages --------------- 01178_ R-06 Scavenger collects Sml. Storage Unit. 01182_ Dropped Autogun. 01182_ Acquired Lgt. Treads. LOCATION=UNKNOWN AMBIENT_HEAT=-10 GOAL=ESCAPE 01278_ NR-XZD(R) destroyed. 01288_ CP-23E(R) destroyed. 01291_ Acquired 39 matter. 01293_ Acquired 35 matter. 01296_ Dropped Autogun. 01296_ Acquired Sub. Machine Gun. 01298_ Acquired 5 matter. 01480_ CN-X2B(R) creaks and sparks as it begins to move. 01480_ IM-SWC(R) creaks and sparks as it begins to move. 01480_ YV-D6O(R) creaks and sparks as it begins to move. 01508_ Lgt. Armor Plating destroyed. 01509_ Lgt. Treads destroyed. 01514_ Ion Engine destroyed. 01515_ Sub. Machine Gun destroyed. Map ----- +----------------------------------------------------+ | ????##??? ##????## ##?????????????????? | | ???## ##??# #????# #?????????????????? | | ???# #### #???## #?????????????????? | | ???# ## ##?## ##????????????????? | | ?### #?# #????????????????? | | ## ## #?# #????????????????? | | # ###### ##?# #?????????????????? | | ## ##???# #??# ##?????????????????? | | ##??## ##???# ##?#### ##?????????????????? | | ????## #???# ##???## #?????????????????? | | ???## #???# ##???### #?????????????????? | | ??## ###?# #?????# ##????????????????? | | ??# #?# #?????# #????????????????? | | ??# ### #??#### #????????????????? | | ??# ## #?## ## ##????????????????? | | ?##### ### #### ##?????????????????? | | ## ### ### ### #####????????????????? | | # "" ### ### #????????????????? | | #""" #?# #????????????????? | | #" ######## #????????????????? | | ## " "#??#### #????????????????? | | ?# " " "##?# #????????????????? | | ## " """ #?# #????????????????? | | """""" ##?# ## ## RR #????????????????? | | """"" ##?# #?###### R #????????????????? | | # ""#" #?## ???????##@## ##????????????????? | | ?#" "##&& #??# ????????#### #######???????????? | | #### ##[!&#?? ???????????# #??????????? | | * *#?# ???????????# #?????????? | | ##? ???????????# ### #?????????? | | ### #? ???????????# #??? ??????? | | ###?# ##? ?????????????## #????? ## ?????? | | ##??? ##?# ???????????????# ?????? ?#???????? | | ????####??????????????????? ???????????????? | | ??????????????????????????? # "???????????????? | | ??????????????????????????? & ??????????????? | | ??????????????????????????#### &"#?????????????? | | ?????????????????????????????? " ??????????????? | | ?????????????????????????????? " ??????????????? | | ??????????????????????????????#?####?????????????? | | ?????????????????????????????????????????????????? | | ?????????????????????????????????????????????????? | | ?????????????????????????????????????????????????? | | ?????????????????????????????????????????????????? | | ?????????????????????????????????????????????????? | | ?????????????????????????????????????????????????? | | ?????????????????????????????????????????????????? | | ?????????????????????????????????????????????????? | | ?????????????????????????????????????????????????? | | ?????????????????????????????????????????????????? | +----------------------------------------------------+ Best States ------------- Heat Dissipation 25 Energy Generation 10 Energy Capacity 250 Matter Stores 300 Matter Capacity 300 Sight Range 16 Terrain Scan Density 10 Armor Coverage 150 Propulsion Shielding 33 Evasion (%) 40 Recoil Reduction 2 Item Schematics ----------------- None Robot Schematics ------------------ None Fabricated ------------ Nothing Alien Tech Used ----------------- None Achievements -------------- None Challenges ------------ None Game ------ Seed FortressSeismicBlaster Manual? 0 Play Time 00:10:23 Cumulative 449.3 hours Start 2024.01.21 @ 07:38:52 End 2024.01.21 @ 07:48:12 Sessions 1 Manual Loads 0 Difficulty Rogue Special Mode None Game No. 160 Rogue 145 Adventurer 15 Explorer 0 Win Type - Total 29 Types 8/3/7/2/2/0/4/2/1 Lore% 91 Gallery% 93 Achievement% 83 Wizard Run 0 Options --------- ASCII 0 Keyboard 0 Movement Numpad Keybinds 0 Fullscreen 1 Font 18/SmallcapsGlow Map View 76x50 Zoom Use 0% Tactical HUD 1 Map Filters NONE Filters NONE Steam 1 RUN: 93ea1fd0-f54a-4fdf-9b76-b8e26e57d5b2